fUSD/lending_fUSD_20250521
["ID","MTS","AMOUNT","RATE_DAILY","PERIOD"]
[361824874,1747823634478,-3847.23,0.00036986,5]
[361824875,1747823634488,-549.05,0.00036986,5]
[361824876,1747823634497,-2564.95,0.00036986,5]
[361824877,1747823634507,-474.32,0.00036986,5]
[361824878,1747823634516,-1818.07,0.00036986,5]
[361824879,1747823634526,-42262.48,0.00036986,5]
[361824880,1747823634536,-1719.68,0.00036986,5]
[361824881,1747823634546,-4510.74,0.00036986,5]
[361824882,1747823634555,-516.93,0.00036986,5]
[361824883,1747823634565,-3137.08,0.00036986,5]
[361824884,1747823634574,-506.82,0.00036986,5]
[361824885,1747823634584,-9532.22,0.00036986,5]
[361824886,1747823634593,-1001.23,0.00036986,5]
[361824887,1747823634603,-420.0,0.00036986,5]
[361824888,1747823634612,-1349.86,0.00036986,5]
[361824889,1747823634622,-1554.78,0.00036986,5]
[361824890,1747823634632,-2359.68,0.00036986,5]
[361824891,1747823634643,-874.84,0.00036986,5]
[361824892,1747823634655,-627.61,0.00036986,5]
[361824893,1747823634665,-670.93,0.00036986,5]
[361824894,1747823634675,-420.0,0.00036986,5]
[361824895,1747823634686,-1909.1,0.00036986,5]
[361824896,1747823634696,-3667.82,0.00036986,5]
[361824897,1747823634706,-713.73,0.00036986,5]
[361824898,1747823634716,-1800.0,0.00037,38]
[361824899,1747823634726,-12542.0,0.00037,30]
[361824900,1747823634736,-2065.6315218,0.00037,30]
[361824901,1747823634745,-309.0,0.00037,2]
[361824902,1747823634755,-12661.32833142,0.00037056,2]
[361824903,1747823634764,-420.0,0.0003726,5]
[361824904,1747823634774,-868.63,0.0003726,5]
[361824905,1747823634784,-771.73,0.0003726,5]
[361824906,1747823634794,-1206.97,0.0003726,5]
[361824907,1747823634805,-1764.15,0.0003726,5]
[361824908,1747823634816,-550.16,0.0003726,5]
[361824909,1747823634827,-497.1,0.0003726,5]
[361824910,1747823634837,-420.0,0.0003726,5]
[361824911,1747823634847,-965.56,0.0003726,5]
[361824912,1747823634857,-616.51,0.0003726,5]
[361824913,1747823634867,-431.56196694,0.0003726,5]
[361824914,1747823634878,-562.65,0.0003726,5]
[361824915,1747823634888,-611.48,0.0003726,5]
[361824916,1747823634898,-506.54,0.0003726,5]
[361824917,1747823634907,-499.33,0.0003726,5]
[361824918,1747823634917,-911.46,0.0003726,5]
[361824919,1747823634927,-1153.75,0.0003726,5]
[361824920,1747823635317,-420.0,0.0003726,5]
[361824921,1747823635329,-730.43,0.0003726,5]
[361824922,1747823635339,-420.0,0.0003726,5]
[361824923,1747823635348,-1697.54,0.0003726,5]
[361824924,1747823635358,-579.77,0.0003726,5]
[361824925,1747823635369,-420.0,0.0003726,5]
[361824926,1747823635379,-570.61,0.0003726,5]
[361824927,1747823635391,-788.01,0.0003726,5]
[361824928,1747823635402,-1490.72,0.0003726,5]
[361824929,1747823635412,-917.84,0.0003726,5]
[361824930,1747823635422,-642.67,0.0003726,5]
[361824931,1747823635431,-901.58,0.0003726,5]
[361824932,1747823635441,-807.74,0.0003726,5]
[361824933,1747823635452,-3015.53,0.0003726,5]
[361824934,1747823635464,-460.17,0.0003726,5]
[361824935,1747823635476,-642.11,0.0003726,5]
[361824936,1747823635486,-420.0,0.0003726,5]
[361824937,1747823635495,-1185.77,0.0003726,5]
[361824938,1747823635504,-973.19,0.0003726,5]
[361824939,1747823635514,-497.57,0.0003726,5]
[361824940,1747823635523,-1098.15,0.0003726,5]
[361824941,1747823635533,-685.16,0.0003726,5]
[361824942,1747823635543,-448.34,0.0003726,5]
[361824943,1747823635552,-818.23,0.0003726,5]
[361824944,1747823635562,-1485.21,0.0003726,5]
[361824945,1747823635572,-443.81,0.0003726,5]
[361824946,1747823635582,-1526.88,0.0003726,5]
[361824947,1747823635591,-420.0,0.0003726,5]
[361824948,1747823635601,-470.16,0.0003726,5]
[361824949,1747823635610,-443.58,0.0003726,5]
[361824950,1747823635620,-669.64,0.0003726,5]
[361824951,1747823635630,-420.0,0.0003726,5]
[361824952,1747823635640,-937.45,0.0003726,5]
[361824953,1747823635650,-2266.87,0.0003726,5]
[361824954,1747823635659,-420.0,0.0003726,5]
[361824955,1747823635669,-300.56962234,0.0003726,5]
[361824956,1747823635680,-442.68,0.0003726,5]
[361824957,1747823635690,-420.0,0.0003726,5]
[361824958,1747823635700,-597.09,0.0003726,5]
[361824959,1747823635710,-655.53,0.0003726,5]
[361824960,1747823635720,-636.42,0.0003726,5]
[361824961,1747823635730,-420.0,0.0003726,5]
[361824962,1747823635740,-838.78,0.0003726,5]
[361824963,1747823635750,-493.93,0.0003726,5]
[361824964,1747823635760,-420.0,0.0003726,5]
[361824965,1747823635770,-560.23,0.0003726,5]
[361824966,1747823635779,-1078.18,0.0003726,5]
[361824967,1747823635790,-420.0,0.0003726,5]
[361824968,1747823635800,-420.0,0.0003726,5]
[361824969,1747823635810,-1065.69,0.0003726,5]
[361824970,1747823635821,-1253.93,0.0003726,5]
[361824971,1747823635831,-1274.75,0.0003726,5]
[361824972,1747823635840,-463.91,0.0003726,5]
[361824973,1747823635850,-721.97,0.0003726,5]
[361824974,1747823635860,-2322.3,0.0003726,5]
[361824975,1747823635869,-381.10224127,0.0003726,5]
[361824976,1747823635879,-821.62,0.0003726,5]
[361824977,1747823635889,-422.38,0.0003726,5]
[361824978,1747823635899,-304.16,0.0003726,5]
[361824979,1747823635910,-550.85,0.0003726,5]
[361824980,1747823635920,-1544.61,0.0003726,5]
[361824981,1747823635930,-420.0,0.0003726,5]
[361824982,1747823635940,-499.46,0.0003726,5]
[361824983,1747823635950,-616.6,0.0003726,5]
[361824984,1747823635960,-678.04,0.0003726,5]
[361824985,1747823635970,-546.75,0.0003726,5]
[361824986,1747823635980,-1170.85,0.0003726,5]
[361824987,1747823635990,-420.0,0.0003726,5]
[361824988,1747823636000,-420.0,0.0003726,5]
[361824989,1747823636009,-1581.01,0.0003726,5]
[361824990,1747823636019,-2020.82,0.0003726,5]
[361824991,1747823636029,-1587.36,0.0003726,5]
[361824992,1747823636039,-440.31,0.0003726,5]
[361824993,1747823636048,-528.73,0.0003726,5]
[361824994,1747823636058,-420.0,0.0003726,5]
[361824995,1747823636068,-835.65,0.0003726,5]
[361824996,1747823636078,-530.24,0.0003726,5]
[361824997,1747823636087,-280.0,0.0003726,5]
[361824998,1747823636098,-632.49,0.0003726,5]
[361824999,1747823636108,-712.53,0.0003726,5]
[361825000,1747823636121,-420.0,0.0003726,5]
[361825001,1747823636132,-471.75691375,0.0003726,5]
[361825002,1747823636142,-905.81,0.0003726,5]
[361825003,1747823636153,-1500.35,0.0003726,5]
[361825004,1747823636163,-913.23,0.0003726,5]
[361825005,1747823636172,-891.23,0.0003726,5]
[361825006,1747823636182,-420.0,0.0003726,5]
[361825007,1747823636192,-420.0,0.0003726,5]
[361825008,1747823636202,-420.0,0.0003726,5]
[361825009,1747823636213,-442.03632408,0.0003726,5]
[361825010,1747823636223,-532.78,0.0003726,5]
[361825011,1747823636233,-793.59,0.0003726,5]
[361825012,1747823636244,-420.0,0.0003726,5]
[361825013,1747823636254,-420.0,0.0003726,5]
[361825014,1747823636265,-716.67,0.0003726,5]
[361825015,1747823636276,-431.22,0.0003726,5]
[361825016,1747823636286,-3321.89,0.0003726,5]
[361825017,1747823636296,-655.87,0.0003726,5]
[361825018,1747823636307,-420.0,0.0003726,5]
[361825019,1747823636317,-464.92,0.0003726,5]
[361825020,1747823636327,-752.46,0.0003726,5]
[361825021,1747823636338,-1164.32,0.0003726,5]
[361825022,1747823636348,-447.46,0.0003726,5]
[361825023,1747823636358,-1182.51,0.0003726,5]
[361825024,1747823636368,-970.46,0.0003726,5]
[361825025,1747823636378,-2566.8,0.0003726,3]
[361825026,1747823636391,-420.0,0.0003726,5]
[361825027,1747823636401,-986.1,0.0003726,5]
[361825028,1747823636411,-3544.76,0.0003726,5]
[361825029,1747823636422,-420.0,0.0003726,5]
[361825030,1747823636441,-528.46,0.0003726,5]
[361825031,1747823636452,-1116.24,0.0003726,5]
[361825032,1747823636463,-607.2,0.0003726,5]
[361825033,1747823636474,-498.41,0.0003726,5]
[361825034,1747823636484,-511.54,0.0003726,5]
[361825035,1747823636495,-1446.26,0.0003726,5]
[361825036,1747823636506,-635.53,0.0003726,5]
[361825037,1747823636517,-337.79608378,0.0003726,5]
[361825038,1747823636528,-602.05,0.0003726,5]
[361825039,1747823636538,-248.15493553,0.0003726,5]
[361825040,1747823636548,-3171.93,0.0003726,5]
[361825041,1747823636559,-672.06,0.0003726,5]
[361825042,1747823636569,-1136.92,0.0003726,5]
[361825043,1747823636580,-501.87,0.0003726,5]
[361825044,1747823636591,-420.0,0.0003726,5]
[361825045,1747823636602,-960.17,0.0003726,5]
[361825046,1747823636612,-1498.01,0.0003726,5]
[361825047,1747823636623,-420.0,0.0003726,5]
[361825048,1747823636633,-472.07101304,0.0003726,5]
[361825049,1747823636644,-489.93,0.0003726,5]
[361825050,1747823636655,-420.0,0.0003726,5]
[361825051,1747823636667,-1181.55,0.0003726,5]
[361825052,1747823636677,-1634.56,0.0003726,5]
[361825053,1747823636689,-731.06,0.0003726,5]
[361825054,1747823636700,-665.75,0.0003726,5]
[361825055,1747823636710,-725.49,0.0003726,5]
[361825056,1747823636720,-1010.87,0.0003726,5]
[361825057,1747823636730,-1218.91,0.0003726,5]
[361825058,1747823636741,-1168.31,0.0003726,5]
[361825059,1747823636751,-1264.38,0.0003726,5]
[361825060,1747823636762,-420.0,0.0003726,5]
[361825061,1747823636773,-420.0,0.0003726,2]
[361825062,1747823636784,-3033.08,0.0003726,5]
[361825063,1747823636796,-584.07,0.0003726,5]
[361825064,1747823636806,-420.0,0.0003726,5]
[361825065,1747823636816,-302.99452647,0.0003726,5]
[361825066,1747823636826,-740.34,0.0003726,5]
[361825067,1747823636836,-420.0,0.0003726,5]
[361825068,1747823636847,-420.0,0.0003726,5]
[361825069,1747823636858,-1236.73,0.0003726,5]
[361825070,1747823636877,-718.57,0.0003726,5]
[361825071,1747823636888,-420.0,0.0003726,2]
[361825072,1747823636899,-2646.97,0.0003726,5]
[361825073,1747823636911,-420.0,0.0003726,5]
[361825074,1747823636923,-3655.51,0.0003726,5]
[361825075,1747823636934,-420.51754145,0.0003726,5]
[361825076,1747823636946,-1194.67,0.0003726,5]
[361825077,1747823636956,-637.39,0.0003726,5]
[361825078,1747823636966,-2368.39,0.0003726,5]
[361825079,1747823636977,-932.97,0.0003726,5]
[361825080,1747823636987,-475.79,0.0003726,5]
[361825081,1747823636998,-788.04,0.0003726,5]
[361825082,1747823637009,-469.81,0.0003726,5]
[361825083,1747823637020,-1158.88,0.0003726,5]
[361825084,1747823637031,-2693.72,0.0003726,5]
[361825085,1747823637042,-2741.78,0.0003726,5]
[361825086,1747823637052,-1351.52,0.0003726,5]
[361825087,1747823637062,-555.2419057,0.0003726,5]
[361825088,1747823637073,-1167.31,0.0003726,5]
[361825089,1747823637084,-1192.06,0.0003726,5]
[361825090,1747823637094,-664.46,0.0003726,5]
[361825091,1747823637106,-2096.4,0.0003726,5]
[361825092,1747823637117,-783.68,0.0003726,5]
[361825093,1747823637128,-506.87,0.0003726,5]
[361825094,1747823637138,-1450.92,0.0003726,5]
[361825095,1747823637149,-1675.88,0.0003726,5]
[361825096,1747823637160,-421.11,0.0003726,5]
[361825097,1747823637170,-655.43,0.0003726,5]
[361825098,1747823637180,-1330.16,0.0003726,5]
[361825099,1747823637191,-628.75,0.0003726,5]
[361825100,1747823637201,-470.23,0.0003726,5]
[361825101,1747823637211,-789.43,0.0003726,5]
[361825102,1747823637222,-2066.32,0.0003726,5]
[361825103,1747823637232,-543.38,0.0003726,5]
[361825104,1747823637242,-1884.88,0.0003726,5]
[361825105,1747823637253,-443.39,0.0003726,5]
[361825106,1747823637263,-814.52,0.0003726,5]
[361825107,1747823637273,-468.75,0.0003726,5]
[361825108,1747823637283,-2280.59,0.0003726,5]
[361825109,1747823637292,-420.0,0.0003726,5]
[361825110,1747823637310,-420.0,0.0003726,5]
[361825111,1747823637320,-1660.08,0.0003726,5]
[361825112,1747823637333,-420.0,0.0003726,5]
[361825113,1747823637344,-2531.44,0.0003726,5]
[361825114,1747823637354,-891.37,0.0003726,5]
[361825115,1747823637364,-1229.28,0.0003726,5]
[361825116,1747823637375,-562.73,0.0003726,5]
[361825117,1747823637390,-420.0,0.0003726,5]
[361825118,1747823637401,-420.0,0.0003726,5]
[361825119,1747823637412,-639.64,0.0003726,5]
[361825120,1747823637423,-1520.14,0.0003726,5]
[361825121,1747823637433,-420.0,0.0003726,5]
[361825122,1747823637443,-2002.78,0.0003726,5]
[361825123,1747823637453,-504.03,0.0003726,5]
[361825124,1747823637463,-420.0,0.0003726,5]
[361825125,1747823637476,-184.24339616,0.0003726,5]
[361825126,1747823637486,-1155.6,0.0003726,5]
[361825127,1747823637496,-756.35,0.0003726,5]
[361825128,1747823637506,-2487.3,0.0003726,5]
[361825129,1747823637517,-829.63,0.0003726,5]
[361825130,1747823637527,-440.4,0.0003726,5]
[361825131,1747823637537,-348.10920613,0.0003726,5]
[361825132,1747823637547,-512.22,0.0003726,5]
[361825133,1747823637557,-1069.06,0.0003726,5]
[361825134,1747823637567,-3548.27,0.0003726,5]
[361825135,1747823637576,-1131.24,0.0003726,5]
[361825136,1747823637586,-531.37,0.0003726,5]
[361825137,1747823637595,-438.38,0.0003726,5]
[361825138,1747823637605,-836.66,0.0003726,5]
[361825139,1747823637615,-1758.59,0.0003726,5]
[361825140,1747823637625,-2244.73,0.0003726,5]
[361825141,1747823637635,-706.99,0.0003726,5]
[361825142,1747823637644,-1303.3,0.0003726,5]
[361825143,1747823637654,-1671.68,0.0003726,5]
[361825144,1747823637663,-630.7,0.0003726,5]
[361825145,1747823637672,-1546.03,0.0003726,5]
[361825146,1747823637682,-1449.1,0.0003726,5]
[361825147,1747823637691,-1084.11,0.0003726,5]
[361825148,1747823637701,-796.16,0.0003726,5]
[361825149,1747823637711,-829.47,0.0003726,5]
[361825150,1747823637720,-560.22,0.0003726,5]
[361825151,1747823637730,-2061.87,0.0003726,5]
[361825152,1747823637739,-1759.24,0.0003726,5]
[361825153,1747823637749,-677.92,0.0003726,5]
[361825154,1747823637758,-420.0,0.0003726,5]
[361825155,1747823637768,-2008.9,0.0003726,5]
[361825156,1747823637778,-420.0,0.0003726,5]
[361825157,1747823637787,-603.25,0.0003726,5]
[361825158,1747823637797,-3335.62,0.0003726,5]
[361825159,1747823637807,-794.93,0.0003726,5]
[361825160,1747823637817,-462.11,0.0003726,5]
[361825161,1747823637827,-1384.78,0.0003726,5]
[361825162,1747823637837,-3088.45,0.0003726,5]
[361825163,1747823637847,-3415.98,0.0003726,5]
[361825164,1747823638157,-475.97,0.0003726,5]
[361825165,1747823638168,-420.0,0.0003726,5]
[361825166,1747823638179,-1441.04,0.0003726,5]
[361825167,1747823638189,-1360.17,0.0003726,5]
[361825168,1747823638199,-799.95,0.0003726,5]
[361825169,1747823638209,-1022.16,0.0003726,5]
[361825170,1747823638218,-2905.57,0.0003726,5]
[361825171,1747823638228,-279.33001403,0.0003726,5]
[361825172,1747823638238,-2154.53,0.0003726,5]
[361825173,1747823638247,-1412.77,0.0003726,5]
[361825174,1747823638258,-252.6217196,0.0003726,5]
[361825175,1747823638266,-1804.92,0.0003726,5]
[361825176,1747823638276,-931.82,0.0003726,5]
[361825177,1747823638285,-3820.81,0.0003726,5]
[361825178,1747823638295,-446.52,0.0003726,5]
[361825179,1747823638306,-3379.22,0.0003726,5]
[361825180,1747823638315,-552.29,0.0003726,5]
[361825181,1747823638325,-2204.62,0.0003726,5]
[361825182,1747823638336,-739.98,0.0003726,5]
[361825183,1747823638345,-1686.16,0.0003726,5]
[361825184,1747823638354,-638.15,0.0003726,5]
[361825185,1747823638364,-2851.0,0.0003726,5]
[361825186,1747823638374,-420.0,0.0003726,5]
[361825187,1747823638383,-1365.61,0.0003726,5]
[361825188,1747823638397,-669.03,0.0003726,5]
[361825189,1747823638406,-641.93,0.0003726,5]
[361825190,1747823638416,-1513.514558,0.0003726,5]
[361825191,1747823638425,-1056.24,0.0003726,5]
[361825192,1747823638436,-605.2,0.0003726,5]
[361825193,1747823638445,-3414.72,0.0003726,5]
[361825194,1747823638455,-456.44,0.0003726,5]
[361825195,1747823638467,-2738.58,0.0003726,5]
[361825196,1747823638477,-626.72,0.0003726,5]
[361825197,1747823638487,-1961.22,0.0003726,5]
[361825198,1747823638496,-4019.16,0.0003726,5]
[361825199,1747823638506,-501.33038722,0.0003726,5]
[361825200,1747823638515,-501.19,0.0003726,5]
[361825201,1747823638525,-437.02,0.0003726,5]
[361825202,1747823638535,-202.64067236,0.0003726,5]
[361825203,1747823638545,-3829.73,0.0003726,5]
[361825204,1747823638554,-1171.35,0.0003726,5]
[361825205,1747823638564,-1602.68,0.0003726,5]
[361825206,1747823638573,-1195.86,0.0003726,5]
[361825207,1747823638583,-1595.56,0.0003726,5]
[361825208,1747823638592,-1403.63,0.0003726,5]
[361825209,1747823638601,-420.0,0.0003726,5]
[361825210,1747823638611,-2127.07,0.0003726,5]
[361825211,1747823638620,-1620.22,0.0003726,5]
[361825212,1747823638630,-975.42,0.0003726,5]
[361825213,1747823638640,-663.27,0.0003726,5]
[361825214,1747823638650,-1651.18,0.0003726,5]
[361825215,1747823638659,-4718.07,0.0003726,5]
[361825216,1747823638669,-560.95,0.0003726,5]
[361825217,1747823638678,-701.41,0.0003726,5]
[361825218,1747823638688,-420.0,0.0003726,5]
[361825219,1747823638697,-708.42,0.0003726,5]
[361825220,1747823638708,-420.0,0.0003726,5]
[361825221,1747823638718,-1131.94,0.0003726,5]
[361825222,1747823638728,-3071.77,0.0003726,5]
[361825223,1747823638737,-1890.69,0.0003726,5]
[361825224,1747823638747,-2588.8,0.0003726,5]
[361825225,1747823638757,-3358.3,0.0003726,5]
[361825226,1747823638768,-950.44,0.0003726,5]
[361825227,1747823638777,-1081.97,0.0003726,5]
[361825228,1747823638788,-447.09,0.0003726,5]
[361825229,1747823638798,-1061.79,0.0003726,5]
[361825230,1747823638808,-3165.26,0.0003726,5]
[361825231,1747823638818,-1578.73,0.0003726,5]
[361825232,1747823638829,-420.0,0.0003726,5]
[361825233,1747823638839,-437.54,0.0003726,5]
[361825234,1747823638849,-801.31,0.0003726,5]
[361825235,1747823638860,-1117.87,0.0003726,5]
[361825236,1747823638869,-590.41,0.0003726,5]
[361825237,1747823638879,-646.24,0.0003726,5]
[361825238,1747823638889,-469.33,0.0003726,5]
[361825239,1747823638899,-1582.05,0.0003726,5]
[361825240,1747823638909,-944.65,0.0003726,5]
[361825241,1747823638919,-1388.27,0.0003726,5]
[361825242,1747823638929,-402.32682136,0.0003726,5]
[361825243,1747823638939,-817.62,0.0003726,5]
[361825244,1747823638949,-1313.42,0.0003726,5]
[361825245,1747823638959,-2499.18,0.0003726,5]
[361825246,1747823638969,-591.99,0.0003726,5]
[361825247,1747823638979,-2712.821305,0.0003726,5]
[361825248,1747823638990,-2676.06,0.0003726,5]
[361825249,1747823639000,-420.0,0.0003726,5]
[361825250,1747823639010,-1630.17,0.0003726,5]
[361825251,1747823639020,-2046.62,0.0003726,5]
[361825252,1747823639030,-707.44,0.0003726,5]
[361825253,1747823639040,-420.0,0.0003726,5]
[361825254,1747823639050,-524.92,0.0003726,5]
[361825255,1747823639060,-844.05,0.0003726,5]
[361825256,1747823639072,-2122.24,0.0003726,5]
[361825257,1747823639081,-603.94,0.0003726,5]
[361825258,1747823639091,-5021.23,0.0003726,5]
[361825259,1747823639101,-1529.49,0.0003726,5]
[361825260,1747823639110,-1250.7,0.0003726,5]
[361825261,1747823639120,-420.0,0.0003726,5]
[361825262,1747823639130,-1682.48,0.0003726,5]
[361825263,1747823639140,-1386.81,0.0003726,5]
[361825264,1747823639149,-730.49,0.0003726,5]
[361825265,1747823639160,-447.9,0.0003726,5]
[361825266,1747823639170,-1324.88,0.0003726,5]
[361825267,1747823639179,-2229.66,0.0003726,5]
[361825268,1747823639189,-472.1,0.0003726,5]
[361825269,1747823639199,-434.93,0.0003726,5]
[361825270,1747823639210,-1282.33,0.0003726,5]
[361825271,1747823639220,-444.34,0.0003726,5]
[361825272,1747823639229,-2643.47,0.0003726,5]
[361825273,1747823639239,-1343.09,0.0003726,5]
[361825274,1747823639249,-600.65,0.0003726,5]
[361825275,1747823639259,-1076.93,0.0003726,5]
[361825276,1747823639269,-1416.84,0.0003726,5]
[361825277,1747823639278,-1332.5,0.0003726,5]
[361825278,1747823639288,-1392.97,0.0003726,5]
[361825279,1747823639297,-682.19,0.0003726,5]
[361825280,1747823639307,-438.34,0.0003726,5]
[361825281,1747823639316,-791.4,0.0003726,5]
[361825282,1747823639326,-632.83,0.0003726,5]
[361825283,1747823639335,-1000.0,0.0003726,30]
[361825284,1747823639345,-713.78,0.0003726,5]
[361825285,1747823639355,-2568.63,0.0003726,5]
[361825286,1747823639365,-550.47355658,0.0003726,5]
[361825287,1747823639375,-1222.57,0.0003726,5]
[361825288,1747823639385,-420.0,0.0003726,5]
[361825289,1747823639400,-1185.11,0.0003726,5]
[361825290,1747823639410,-3400.95,0.0003726,5]
[361825291,1747823639420,-618.99,0.0003726,5]
[361825292,1747823639430,-559.3,0.0003726,5]
[361825293,1747823639442,-2592.87,0.0003726,5]
[361825294,1747823639451,-729.48,0.0003726,5]
[361825295,1747823639461,-1036.77,0.0003726,5]
[361825296,1747823639473,-912.69,0.0003726,5]
[361825297,1747823639484,-2077.17,0.0003726,5]
[361825298,1747823639493,-474.23,0.0003726,5]
[361825299,1747823639503,-633.02,0.0003726,5]
[361825300,1747823639513,-2143.32,0.0003726,5]
[361825301,1747823639523,-2433.64,0.0003726,5]
[361825302,1747823639534,-2156.45,0.0003726,5]
[361825303,1747823639544,-680.33,0.0003726,5]
[361825304,1747823639554,-1587.63,0.0003726,5]
[361825305,1747823639564,-3338.68,0.0003726,5]
[361825306,1747823639574,-2132.67,0.0003726,5]
[361825307,1747823639584,-539.66,0.0003726,5]
[361825308,1747823639594,-1108.21,0.0003726,5]
[361825309,1747823639604,-1448.56,0.0003726,5]
[361825310,1747823639614,-1231.09,0.0003726,5]
[361825311,1747823639623,-1449.81,0.0003726,5]
[361825312,1747823639634,-420.0,0.0003726,5]
[361825313,1747823639643,-2507.82,0.0003726,5]
[361825314,1747823639653,-2269.59,0.0003726,5]
[361825315,1747823639663,-3289.43,0.0003726,5]
[361825316,1747823639673,-461.55,0.0003726,5]
[361825317,1747823639683,-1017.25,0.0003726,5]
[361825318,1747823639693,-1196.46,0.0003726,5]
[361825319,1747823639702,-420.0,0.0003726,5]
[361825320,1747823639712,-1902.38,0.0003726,5]
[361825321,1747823639721,-4528.11,0.0003726,5]
[361825322,1747823639731,-2709.01,0.0003726,5]
[361825323,1747823639741,-437.58,0.0003726,5]
[361825324,1747823639751,-934.68,0.0003726,5]
[361825325,1747823639762,-644.31,0.0003726,5]
[361825326,1747823639772,-3000.52,0.0003726,5]
[361825327,1747823639782,-2558.61,0.0003726,5]
[361825328,1747823639793,-919.21,0.0003726,5]
[361825329,1747823639803,-1016.83,0.0003726,5]
[361825330,1747823639813,-3800.75,0.0003726,5]
[361825331,1747823639823,-1283.86,0.0003726,5]
[361825332,1747823639833,-5012.54,0.0003726,5]
[361825333,1747823639843,-4257.36,0.0003726,5]
[361825334,1747823639853,-420.0,0.0003726,5]
[361825335,1747823639863,-420.0,0.0003726,5]
[361825336,1747823639873,-2661.46,0.0003726,5]
[361825337,1747823639883,-7175.57,0.0003726,5]
[361825338,1747823639893,-1626.84,0.0003726,5]
[361825339,1747823639903,-7478.95,0.0003726,5]
[361825340,1747823639912,-1297.42,0.0003726,5]
[361825341,1747823639922,-1050.66,0.0003726,5]
[361825342,1747823639933,-459.54,0.0003726,5]
[361825343,1747823639943,-3186.22,0.0003726,5]
[361825344,1747823639953,-1603.59,0.0003726,5]
[361825345,1747823639964,-1706.72,0.0003726,5]
[361825346,1747823639973,-1118.07,0.0003726,5]
[361825347,1747823639984,-1819.17,0.0003726,5]
[361825348,1747823639994,-477.62,0.0003726,5]
[361825349,1747823640004,-500.47,0.0003726,5]
[361825350,1747823640014,-3456.53,0.0003726,5]
[361825351,1747823640024,-1245.18,0.0003726,5]
[361825352,1747823640034,-864.67,0.0003726,5]
[361825353,1747823640044,-485.82,0.0003726,5]
[361825354,1747823640054,-483.53,0.0003726,5]
[361825355,1747823640064,-1044.28,0.0003726,5]
[361825356,1747823640075,-2279.99,0.0003726,5]
[361825357,1747823640084,-1093.42,0.0003726,5]
[361825358,1747823640094,-773.61,0.0003726,5]
[361825359,1747823640105,-1587.6,0.0003726,5]
[361825360,1747823640115,-2000.0,0.0003726,5]
[361825361,1747823640125,-3023.35,0.0003726,5]
[361825362,1747823640134,-2681.61,0.0003726,5]
[361825363,1747823640144,-3921.51,0.0003726,5]
[361825364,1747823640154,-774.74,0.0003726,5]
[361825365,1747823640164,-11832.32,0.0003726,5]
[361825366,1747823640174,-1140.49,0.0003726,5]
[361825367,1747823640184,-716.85,0.0003726,5]
[361825368,1747823640195,-1451.14,0.0003726,5]
[361825369,1747823640204,-1980.16,0.0003726,5]
[361825370,1747823640214,-4169.63,0.0003726,5]
[361825371,1747823640224,-614.3,0.0003726,5]
[361825372,1747823640234,-478.74,0.0003726,5]
[361825373,1747823640243,-1064.83,0.0003726,5]